fUST/lending_fUST_20240517
["ID","MTS","AMOUNT","RATE_DAILY","PERIOD"]
[327250299,1715927439612,-500.0,0.00016438,2]
[327250300,1715927439622,-500.0,0.00016438,2]
[327250301,1715927439632,-500.0,0.00016438,2]
[327250302,1715927439642,-500.0,0.00016438,2]
[327250303,1715927439653,-584.2,0.00016438,2]
[327250304,1715927439663,-589.51951981,0.00016438,2]
[327250305,1715927439673,-500.0,0.00016438,4]
[327250306,1715927439683,-1840.94,0.00016438,2]
[327250307,1715927439693,-454.53672778,0.00016438,2]
[327250308,1715927439707,-197.81327222,0.00016438,2]
[327250309,1715927439717,-116.66071995,0.00016438,2]
[327250310,1715927439729,-383.33928005,0.00016438,2]
[327250311,1715927439738,-618.72387995,0.00016438,2]
[327250453,1715927487676,154.75239617,9.999e-05,2]
[327250454,1715927807418,500.0,0.000265,120]
[327250455,1715927821116,500.0,0.000265,120]
[327250463,1715927868439,206.64339249,9.999e-05,2]
[327250477,1715927989138,298.0,0.000265,120]
[327250478,1715927996438,300.0,0.000265,120]
[327250480,1715928003410,300.0,0.000265,120]
[327250487,1715928058398,10000.0,0.00023,30]
[327250488,1715928070259,7369.85,0.00023,30]
[327250512,1715928306021,206.64339249,9.999e-05,2]
[327250514,1715928428113,-206.64339249,0.00015127,2]
[327250515,1715928428136,-2050.96502669,0.00015127,2]
[327250579,1715928634836,-206.64339249,0.00015008,2]
[327250581,1715928634846,-547.17231559,0.00015009,2]
[327250583,1715928634860,-14331.2786034,0.00015009,2]
[327250585,1715928634871,-396.49516418,0.00015109,2]
[327250587,1715928634881,-24870.0,0.0001511,2]
[327250589,1715928634890,-522.94149242,0.00015126,2]
[327250591,1715928634899,-1803.93549992,0.00015127,2]
[327250593,1715928634909,-239.293394,0.00015209,2]
[327250595,1715928634918,-500.60188155,0.00015614,2]
[327250597,1715928634928,-2315.2469905,0.00016,2]
[327250599,1715928634937,-150.40028902,0.00016273,2]
[327250601,1715928634947,-153.0,0.000163,2]
[327250603,1715928634956,-153.0,0.000163,2]
[327250605,1715928634965,-153.0,0.000163,2]
[327250607,1715928634974,-153.0,0.000163,2]
[327250609,1715928634984,-153.0,0.000163,2]
[327250611,1715928634994,-153.0,0.000163,2]
[327250613,1715928635003,-153.0,0.000163,2]
[327250615,1715928635012,-155.0194104,0.000163,2]
[327250617,1715928635022,-4221.46001999,0.00016351,2]
[327250619,1715928635032,-531.36807526,0.00016436,2]
[327250621,1715928635041,-172.03156457,0.00016436,2]
[327250623,1715928635050,-916.00473105,0.00016436,2]
[327250624,1715928635059,-406.30178098,0.00016437,2]
[327250626,1715928635069,-500.0,0.00016438,2]
[327250628,1715928635079,-500.0,0.00016438,2]
[327250631,1715928635088,-500.0,0.00016438,2]
[327250633,1715928635098,-567.39,0.00016438,2]
[327250635,1715928635109,-500.0,0.00016438,2]
[327250637,1715928635118,-162.25988521,0.00016438,2]
[327250639,1715928635127,-626.76,0.00016438,2]
[327250641,1715928635137,-500.0,0.00016438,4]
[327250643,1715928635147,-500.0,0.00016438,2]
[327250645,1715928635156,-500.0,0.00016438,2]
[327250647,1715928635165,-190.98912686,0.00016438,2]
[327250649,1715928635175,-500.0,0.00016438,2]
[327250651,1715928635184,-500.0,0.00016438,2]
[327250653,1715928635193,-500.0,0.00016438,2]
[327250655,1715928635203,-500.0,0.00016438,2]
[327250657,1715928635213,-183.93698649,0.00016438,2]
[327250659,1715928635223,-262.64318826,0.00016438,2]
[327250661,1715928635232,-500.0,0.00016438,2]
[327250662,1715928635241,-500.0,0.00016438,2]
[327250663,1715928635251,-500.0,0.00016438,2]
[327250664,1715928635260,-641.37,0.00016438,2]
[327250665,1715928635271,-500.0,0.00016438,2]
[327250666,1715928635281,-500.0,0.00016438,2]
[327250667,1715928635471,-500.0,0.00016438,2]
[327250668,1715928635482,-500.0,0.00016438,2]
[327250669,1715928635492,-151.0,0.00016438,2]
[327250670,1715928635502,-151.0,0.00016438,2]
[327250671,1715928635513,-151.0,0.00016438,2]
[327250672,1715928635523,-151.0,0.00016438,2]
[327250673,1715928635532,-151.0,0.00016438,2]
[327250674,1715928635542,-176.780098,0.00016438,2]
[327250675,1715928635552,-500.0,0.00016438,2]
[327250676,1715928635563,-505.04243621,0.00016438,2]
[327250677,1715928635573,-216.774614,0.00016438,2]
[327250678,1715928635583,-254.815863,0.00016438,2]
[327250679,1715928635593,-254.815863,0.00016438,2]
[327250680,1715928635602,-254.815863,0.00016438,2]
[327250681,1715928635611,-254.815863,0.00016438,2]
[327250682,1715928635621,-254.815863,0.00016438,2]
[327250683,1715928635631,-254.815863,0.00016438,2]
[327250684,1715928635640,-254.815863,0.00016438,2]
[327250685,1715928635650,-254.815863,0.00016438,2]
[327250686,1715928635660,-254.815863,0.00016438,2]
[327250687,1715928635670,-254.815863,0.00016438,2]
[327250688,1715928635680,-500.0,0.00016438,2]
[327250689,1715928635689,-254.815863,0.00016438,2]
[327250690,1715928635698,-254.815863,0.00016438,2]
[327250691,1715928635708,-254.815863,0.00016438,2]
[327250692,1715928635718,-254.815863,0.00016438,2]
[327250693,1715928635728,-254.815863,0.00016438,2]
[327250694,1715928635737,-254.815863,0.00016438,2]
[327250695,1715928635747,-254.815863,0.00016438,2]
[327250696,1715928635756,-254.815863,0.00016438,2]
[327250697,1715928635765,-254.815863,0.00016438,2]
[327250698,1715928635775,-254.815859,0.00016438,2]
[327250699,1715928635785,-500.0,0.00016438,2]
[327250700,1715928635794,-559.86,0.00016438,2]
[327250701,1715928635804,-625.17,0.00016438,2]
[327250702,1715928635813,-500.0,0.00016438,2]
[327250703,1715928635823,-500.0,0.00016438,2]
[327250704,1715928635833,-184.74470934,0.00016438,2]
[327250705,1715928635843,-928.32,0.00016438,2]
[327250706,1715928635853,-500.0,0.00016438,2]
[327250707,1715928635862,-12436.63,0.00016438,2]
[327250708,1715928635872,-531.07,0.00016438,2]
[327250709,1715928635882,-500.0,0.00016438,2]
[327250710,1715928635892,-1091.97,0.00016438,2]
[327250711,1715928635901,-500.0,0.00016438,2]
[327250712,1715928635911,-500.0,0.00016438,2]
[327250713,1715928635920,-618.59,0.00016438,2]
[327250714,1715928635930,-500.0,0.00016438,2]
[327250715,1715928635939,-500.0,0.00016438,2]
[327250716,1715928635949,-3253.96,0.00016438,2]
[327250717,1715928635959,-506.55529925,0.00016438,2]
[327250718,1715928635968,-500.0,0.00016438,2]
[327250719,1715928635978,-500.0,0.00016438,2]
[327250720,1715928635987,-501.44468886,0.00016438,2]
[327250721,1715928635997,-1183.92,0.00016438,2]
[327250722,1715928636007,-504.11236006,0.00016438,2]
[327250723,1715928636017,-151.0,0.00016438,2]
[327250724,1715928636027,-151.0,0.00016438,2]
[327250725,1715928636037,-151.0,0.00016438,2]
[327250726,1715928636046,-151.0,0.00016438,2]
[327250727,1715928636055,-151.0,0.00016438,2]
[327250728,1715928636065,-229.076184,0.00016438,2]
[327250729,1715928636075,-534.50790049,0.00016438,2]
[327250730,1715928636085,-1536.56,0.00016438,2]
[327250731,1715928636095,-500.0,0.00016438,2]
[327250732,1715928636105,-500.0,0.00016438,2]
[327250733,1715928636115,-500.0,0.00016438,2]
[327250734,1715928636125,-4995.04,0.00016438,2]
[327250735,1715928636134,-710.07,0.00016438,2]
[327250736,1715928636143,-500.0,0.00016438,2]
[327250737,1715928636152,-719.43,0.00016438,2]
[327250738,1715928636162,-1058.52,0.00016438,2]
[327250739,1715928636171,-2485.744166,0.00016438,2]
[327250740,1715928636181,-2485.744166,0.00016438,2]
[327250741,1715928636191,-2485.744166,0.00016438,2]
[327250742,1715928636200,-2485.744166,0.00016438,2]
[327250743,1715928636210,-500.0,0.00016438,2]
[327250744,1715928636219,-2485.744166,0.00016438,2]
[327250745,1715928636229,-2485.744166,0.00016438,2]
[327250746,1715928636239,-500.0,0.00016438,2]
[327250747,1715928636249,-2485.744166,0.00016438,2]
[327250748,1715928636259,-2485.744166,0.00016438,2]
[327250749,1715928636268,-2485.744166,0.00016438,2]
[327250750,1715928636278,-2485.744166,0.00016438,2]
[327250751,1715928636288,-2485.744166,0.00016438,2]
[327250752,1715928636298,-2485.744166,0.00016438,2]
[327250753,1715928636307,-2485.744166,0.00016438,2]
[327250754,1715928636317,-2485.744166,0.00016438,2]
[327250755,1715928636326,-2485.744166,0.00016438,2]
[327250756,1715928636336,-2485.744166,0.00016438,2]
[327250757,1715928636350,-2485.744166,0.00016438,2]
[327250758,1715928636361,-834.06,0.00016438,2]
[327250759,1715928636370,-2485.744166,0.00016438,2]
[327250760,1715928636380,-2485.744166,0.00016438,2]
[327250761,1715928636391,-2485.744173,0.00016438,2]
[327250762,1715928636400,-500.0,0.00016438,2]
[327250763,1715928636410,-3229.14,0.00016438,2]
[327250764,1715928636421,-500.0,0.00016438,2]
[327250765,1715928636431,-151.0,0.00016438,2]
[327250766,1715928636440,-293.975332,0.00016438,2]
[327250767,1715928636449,-500.0,0.00016438,2]
[327250768,1715928636459,-500.0,0.00016438,2]
[327250769,1715928636469,-572.74,0.00016438,2]
[327250770,1715928636478,-500.0,0.00016438,2]
[327250771,1715928636488,-500.0,0.00016438,2]
[327250772,1715928636497,-500.0,0.00016438,2]
[327250773,1715928636507,-500.0,0.00016438,2]
[327250774,1715928636516,-500.0,0.00016438,2]
[327250775,1715928636526,-500.0,0.00016438,2]
[327250776,1715928636536,-500.0,0.00016438,2]
[327250777,1715928636546,-1764.24,0.00016438,2]
[327250778,1715928636555,-151.0,0.00016438,2]
[327250779,1715928636565,-151.0,0.00016438,2]
[327250780,1715928636575,-151.0,0.00016438,2]
[327250781,1715928636584,-169.4173,0.00016438,2]
[327250782,1715928636594,-500.0,0.00016438,2]
[327250783,1715928636603,-533.6,0.00016438,2]
[327250784,1715928636613,-155.4945143,0.000165,2]
[327250785,1715928636623,-153.0,0.000165,2]
[327250786,1715928636632,-150.0,0.00016689,2]
[327250787,1715928636642,-247.7,0.00016689,2]
[327250788,1715928636652,-154.6001337,0.000167,2]
[327250789,1715928636661,-500.0,0.00016712,2]
[327250790,1715928636671,-500.0,0.00016712,2]
[327250791,1715928636681,-567.39,0.00016712,2]
[327250792,1715928636691,-500.0,0.00016712,2]
[327250793,1715928636702,-626.76,0.00016712,2]
[327250794,1715928636712,-500.0,0.00016712,4]
[327250795,1715928636722,-500.0,0.00016712,2]
[327250796,1715928636732,-569.82156696,0.00016712,2]
[327250797,1715928636742,-500.0,0.00016712,2]
[327250798,1715928636752,-500.0,0.00016712,2]
[327250799,1715928636762,-500.0,0.00016712,2]
[327250800,1715928636771,-500.0,0.00016712,2]
[327250801,1715928636781,-500.0,0.00016712,2]
[327250802,1715928636790,-641.37,0.00016712,2]
[327250803,1715928636800,-500.0,0.00016712,2]
[327250804,1715928636809,-500.0,0.00016712,2]
[327250805,1715928636818,-500.0,0.00016712,2]
[327250806,1715928636828,-500.0,0.00016712,2]
[327250807,1715928636837,-500.0,0.00016712,2]
[327250808,1715928636847,-500.0,0.00016712,2]
[327250809,1715928636856,-500.0,0.00016712,2]
[327250810,1715928636865,-559.86,0.00016712,2]
[327250811,1715928636874,-625.17,0.00016712,2]
[327250812,1715928636884,-500.0,0.00016712,2]
[327250813,1715928636894,-500.0,0.00016712,2]
[327250814,1715928636903,-928.32,0.00016712,2]
[327250815,1715928636913,-500.0,0.00016712,2]
[327250816,1715928636923,-12436.63,0.00016712,2]
[327250817,1715928636933,-531.07,0.00016712,2]
[327250818,1715928636942,-500.0,0.00016712,2]
[327250819,1715928636951,-1091.97,0.00016712,2]
[327250820,1715928636962,-500.0,0.00016712,2]
[327250821,1715928636971,-156.19030772,0.00016712,2]
[327250822,1715928636981,-618.59,0.00016712,2]
[327250823,1715928636990,-500.0,0.00016712,2]
[327250824,1715928637000,-3253.96,0.00016712,2]
[327250825,1715928637009,-500.0,0.00016712,2]
[327250826,1715928637019,-500.0,0.00016712,2]
[327250827,1715928637028,-1183.92,0.00016712,2]
[327250828,1715928637037,-1536.56,0.00016712,2]
[327250829,1715928637047,-500.0,0.00016712,2]
[327250830,1715928637056,-500.0,0.00016712,2]
[327250831,1715928637066,-4995.04,0.00016712,2]
[327250832,1715928637075,-710.07,0.00016712,2]
[327250833,1715928637085,-500.0,0.00016712,2]
[327250834,1715928637094,-719.43,0.00016712,2]
[327250835,1715928637104,-1058.52,0.00016712,2]
[327250836,1715928637114,-500.0,0.00016712,2]
[327250837,1715928637123,-834.06,0.00016712,2]
[327250838,1715928637132,-500.0,0.00016712,2]
[327250839,1715928637142,-3229.14,0.00016712,2]
[327250840,1715928637151,-500.0,0.00016712,2]
[327250841,1715928637160,-500.0,0.00016712,2]
[327250842,1715928637169,-572.74,0.00016712,2]
[327250843,1715928637178,-500.0,0.00016712,2]
[327250844,1715928637187,-500.0,0.00016712,2]
[327250845,1715928637200,-500.0,0.00016712,2]
[327250846,1715928637212,-500.0,0.00016712,2]
[327250847,1715928637224,-466.25335903,0.00016712,2]
[327250848,1715928637236,-500.0,0.00016712,2]
[327250849,1715928637247,-1764.24,0.00016712,2]
[327250850,1715928637258,-320.82996113,0.00016712,2]
[327250851,1715928637268,-533.6,0.00016712,2]
[327250852,1715928637278,-150.305,0.00016764,2]
[327250853,1715928637289,-495.0,0.00016767,2]
[327250854,1715928637300,-247.7,0.0001689,2]
[327250855,1715928637311,-155.0660038,0.00016921,2]
[327250856,1715928637323,-153.0,0.00016921,2]
[327250857,1715928637336,-153.0,0.00016921,2]
[327250858,1715928637347,-153.0,0.00016921,2]
[327250859,1715928637359,-153.0,0.00016921,2]
[327250860,1715928637371,-153.0,0.00016921,2]
[327250861,1715928637383,-153.0,0.00016921,2]
[327250862,1715928637394,-153.0,0.00016921,2]
[327250863,1715928637406,-153.0,0.00016921,2]
[327250864,1715928637417,-153.0,0.00016921,2]
[327250865,1715928637429,-153.0,0.00016921,2]
[327250866,1715928637439,-153.0,0.00016921,2]
[327250867,1715928637450,-153.0,0.00016921,2]
[327250868,1715928637461,-153.0,0.00016921,2]
[327250869,1715928637472,-153.0,0.00016921,2]
[327250870,1715928637482,-153.0,0.00016921,2]
[327250871,1715928637492,-153.0,0.00016921,2]
[327250872,1715928637503,-153.0,0.00016921,2]
[327250873,1715928637514,-153.0,0.00016921,2]
[327250874,1715928637525,-153.0,0.00016921,2]
[327250875,1715928637536,-153.0,0.00016921,2]
[327250876,1715928637547,-153.0,0.00016921,2]
[327250877,1715928637559,-153.0,0.00016921,2]
[327250878,1715928637570,-153.0,0.00016921,2]
[327250879,1715928637581,-153.0,0.00016921,2]
[327250880,1715928637592,-153.0,0.00016921,2]
[327250881,1715928637604,-153.0,0.00016921,2]
[327250882,1715928637615,-153.0,0.00016921,2]
[327250883,1715928637627,-785.09385602,0.00016986,3]
[327250884,1715928637639,-500.0,0.00016986,2]
[327250885,1715928637650,-500.0,0.00016986,2]
[327250886,1715928637660,-567.39,0.00016986,2]
[327250887,1715928637671,-500.0,0.00016986,2]
[327250888,1715928637681,-626.76,0.00016986,2]
[327250889,1715928637694,-500.0,0.00016986,4]
[327250890,1715928637705,-500.0,0.00016986,2]
[327250891,1715928637715,-500.0,0.00016986,2]
[327250892,1715928637727,-500.0,0.00016986,2]
[327250893,1715928637738,-500.0,0.00016986,2]
[327250894,1715928637749,-500.0,0.00016986,2]
[327250895,1715928637759,-500.0,0.00016986,2]
[327250896,1715928637770,-641.37,0.00016986,2]
[327250897,1715928637781,-500.0,0.00016986,2]
[327250898,1715928637792,-500.0,0.00016986,2]
[327250899,1715928637802,-500.0,0.00016986,2]
[327250900,1715928637813,-500.0,0.00016986,2]
[327250901,1715928637824,-500.0,0.00016986,2]
[327250902,1715928637835,-500.0,0.00016986,2]
[327250903,1715928637847,-500.0,0.00016986,2]
[327250904,1715928637858,-559.86,0.00016986,2]
[327250905,1715928637869,-625.17,0.00016986,2]
[327250906,1715928637880,-500.0,0.00016986,2]
[327250907,1715928637890,-500.0,0.00016986,2]
[327250908,1715928637901,-928.32,0.00016986,2]
[327250909,1715928637911,-500.0,0.00016986,2]
[327250910,1715928637922,-12436.63,0.00016986,2]
[327250911,1715928637931,-531.07,0.00016986,2]
[327250912,1715928637941,-500.0,0.00016986,2]
[327250914,1715928637952,-1091.97,0.00016986,2]
[327250915,1715928637962,-500.0,0.00016986,2]
[327250917,1715928637973,-618.59,0.00016986,2]
[327250918,1715928637985,-500.0,0.00016986,2]
[327250919,1715928637997,-3253.96,0.00016986,2]
[327250920,1715928638008,-500.0,0.00016986,2]
[327250921,1715928638018,-500.0,0.00016986,2]
[327250922,1715928638028,-1183.92,0.00016986,2]
[327250923,1715928638038,-1536.56,0.00016986,2]
[327250924,1715928638047,-500.0,0.00016986,2]
[327250925,1715928638057,-500.0,0.00016986,2]
[327250926,1715928638067,-500.0,0.00016986,2]
[327250927,1715928638078,-4995.04,0.00016986,2]
[327250928,1715928638089,-710.07,0.00016986,2]
[327250929,1715928638100,-264.44892479,0.00016986,2]
[327250930,1715928638111,-719.43,0.00016986,2]
[327250931,1715928638122,-1058.52,0.00016986,2]
[327250932,1715928638132,-834.06,0.00016986,2]
[327250935,1715928638143,-500.0,0.00016986,2]
[327250937,1715928638152,-500.0,0.00016986,2]
[327250938,1715928638162,-3229.14,0.00016986,2]
[327250939,1715928638172,-500.0,0.00016986,2]
[327250940,1715928638182,-500.0,0.00016986,2]
[327250941,1715928638192,-572.74,0.00016986,2]
[327250942,1715928638202,-500.0,0.00016986,2]
[327250943,1715928638212,-500.0,0.00016986,2]
[327250944,1715928638222,-500.0,0.00016986,2]
[327250945,1715928638232,-500.0,0.00016986,2]
[327250946,1715928638242,-500.0,0.00016986,2]
[327250947,1715928638252,-1764.24,0.00016986,2]
[327250948,1715928638262,-533.6,0.00016986,2]
[327250949,1715928638272,-247.7,0.00017092,2]
[327250950,1715928638282,-620.00003571,0.00017234,2]
[327250951,1715928638292,-236.078785,0.00017249,2]
[327250952,1715928638302,-153.0,0.00017249,2]
[327250953,1715928638312,-500.11958888,0.0001725,2]
[327250954,1715928638323,-500.0,0.0001726,2]
[327250955,1715928638333,-500.0,0.0001726,2]
[327250956,1715928638347,-567.39,0.0001726,2]
[327250957,1715928638358,-500.0,0.0001726,2]
[327250958,1715928638369,-626.76,0.0001726,2]
[327250959,1715928638380,-500.0,0.0001726,4]
[327250960,1715928638391,-500.0,0.0001726,2]
[327250962,1715928638401,-500.0,0.0001726,2]
[327250964,1715928638412,-500.0,0.0001726,2]
[327250966,1715928638426,-500.0,0.0001726,2]
[327250969,1715928638436,-500.0,0.0001726,2]
[327250971,1715928638447,-500.0,0.0001726,2]
[327250973,1715928638457,-641.37,0.0001726,2]
[327250975,1715928638467,-295.84287744,0.0001726,2]
[327250977,1715928638478,-500.0,0.0001726,2]
[327250979,1715928638488,-500.0,0.0001726,2]
[327250981,1715928638499,-500.0,0.0001726,2]
[327250983,1715928638509,-500.0,0.0001726,2]
[327250985,1715928638519,-500.0,0.0001726,2]
[327250987,1715928638529,-500.0,0.0001726,2]
[327250989,1715928638539,-559.86,0.0001726,2]
[327250991,1715928638550,-625.17,0.0001726,2]
[327250993,1715928638560,-500.0,0.0001726,2]
[327250996,1715928638570,-500.0,0.0001726,2]
[327250998,1715928638580,-928.32,0.0001726,2]
[327251000,1715928638591,-500.0,0.0001726,2]
[327251002,1715928638601,-12436.63,0.0001726,2]
[327251004,1715928638614,-531.07,0.0001726,2]
[327251006,1715928638624,-500.0,0.0001726,2]
[327251008,1715928638635,-1091.97,0.0001726,2]
[327251010,1715928638646,-500.0,0.0001726,2]
[327251012,1715928638656,-618.59,0.0001726,2]
[327251015,1715928638667,-500.0,0.0001726,2]
[327251017,1715928638676,-3253.96,0.0001726,2]
[327251019,1715928638687,-500.0,0.0001726,2]
[327251021,1715928638697,-533.51499064,0.0001726,2]
[327251023,1715928638707,-1183.92,0.0001726,2]
[327251025,1715928638717,-1536.56,0.0001726,2]
[327251027,1715928638727,-500.0,0.0001726,2]
[327251029,1715928638738,-500.0,0.0001726,2]
[327251031,1715928638748,-4995.04,0.0001726,2]
[327251033,1715928638759,-710.07,0.0001726,2]
[327251035,1715928638769,-719.43,0.0001726,2]
[327251038,1715928638779,-1058.52,0.0001726,2]
[327251040,1715928638789,-834.06,0.0001726,2]
[327251042,1715928638800,-500.0,0.0001726,2]
[327251044,1715928638811,-500.0,0.0001726,2]
[327251046,1715928638822,-3229.14,0.0001726,2]
[327251048,1715928638832,-500.0,0.0001726,2]
[327251050,1715928638843,-500.0,0.0001726,2]
[327251052,1715928638853,-572.74,0.0001726,2]
[327251055,1715928638863,-500.0,0.0001726,2]
[327251057,1715928638873,-500.0,0.0001726,2]
[327251059,1715928638883,-500.0,0.0001726,2]
[327251061,1715928638894,-500.0,0.0001726,2]
[327251063,1715928638904,-500.0,0.0001726,2]
[327251065,1715928638914,-1764.24,0.0001726,2]
[327251067,1715928638924,-533.6,0.0001726,2]
[327251069,1715928638935,-247.7,0.00017293,2]
[327251071,1715928638945,-247.7,0.00017494,2]
[327251073,1715928638955,-500.0,0.00017534,2]
[327251075,1715928638966,-500.0,0.00017534,2]
[327251078,1715928638976,-453.54733655,0.00017534,2]
[327251080,1715928638986,-567.39,0.00017534,2]
[327251082,1715928638997,-626.76,0.00017534,2]
[327251084,1715928639007,-500.0,0.00017534,4]
[327251086,1715928639017,-500.0,0.00017534,2]
[327251088,1715928639027,-500.0,0.00017534,2]
[327251090,1715928639038,-500.0,0.00017534,2]
[327251092,1715928639048,-500.0,0.00017534,2]
[327251094,1715928639059,-500.0,0.00017534,2]
[327251095,1715928639069,-500.0,0.00017534,2]
[327251099,1715928639270,-641.37,0.00017534,2]
[327251101,1715928639285,-500.0,0.00017534,2]
[327251103,1715928639295,-500.0,0.00017534,2]
[327251105,1715928639304,-500.0,0.00017534,2]
[327251107,1715928639314,-500.0,0.00017534,2]
[327251109,1715928639323,-399.09806403,0.00017534,2]
[327251111,1715928639333,-500.0,0.00017534,2]
[327251112,1715928639347,-559.86,0.00017534,2]
[327251113,1715928639357,-625.17,0.00017534,2]
[327251114,1715928639367,-500.0,0.00017534,2]
[327251115,1715928639376,-500.0,0.00017534,2]
[327251117,1715928639386,-928.32,0.00017534,2]
[327251119,1715928639396,-500.0,0.00017534,2]
[327251121,1715928639405,-12436.63,0.00017534,2]
[327251123,1715928639415,-531.07,0.00017534,2]
[327251124,1715928639424,-500.0,0.00017534,2]
[327251125,1715928639435,-1091.97,0.00017534,2]
[327251126,1715928639444,-500.0,0.00017534,2]
[327251128,1715928639454,-618.59,0.00017534,2]
[327251129,1715928639463,-500.0,0.00017534,2]
[327251130,1715928639472,-3253.96,0.00017534,2]
[327251131,1715928639482,-500.0,0.00017534,2]
[327251132,1715928639491,-1183.92,0.00017534,2]
[327251133,1715928639501,-1536.56,0.00017534,2]
[327251134,1715928639511,-500.0,0.00017534,2]
[327251135,1715928639521,-500.0,0.00017534,2]
[327251136,1715928639530,-4995.04,0.00017534,2]
[327251137,1715928639539,-710.07,0.00017534,2]
[327251138,1715928639549,-719.43,0.00017534,2]
[327251139,1715928639558,-1058.52,0.00017534,2]
[327251140,1715928639568,-834.06,0.00017534,2]
[327251141,1715928639577,-500.0,0.00017534,2]
[327251142,1715928639587,-500.0,0.00017534,2]
[327251143,1715928639596,-3229.14,0.00017534,2]
[327251144,1715928639606,-500.0,0.00017534,2]
[327251145,1715928639616,-500.0,0.00017534,2]
[327251146,1715928639627,-572.74,0.00017534,2]
[327251147,1715928639637,-500.0,0.00017534,2]
[327251148,1715928639646,-500.0,0.00017534,2]
[327251149,1715928639655,-500.0,0.00017534,2]
[327251150,1715928639664,-500.0,0.00017534,2]
[327251151,1715928639673,-500.0,0.00017534,2]
[327251152,1715928639683,-1764.24,0.00017534,2]
[327251153,1715928639692,-533.6,0.00017534,2]
[327251154,1715928639701,-153.0,0.00017671,2]
[327251155,1715928639711,-153.0,0.00017671,2]
[327251156,1715928639720,-153.0,0.00017671,2]
[327251157,1715928639729,-153.0,0.00017671,2]
[327251158,1715928639739,-153.0,0.00017671,2]
[327251159,1715928639748,-247.7,0.00017696,2]
[327251160,1715928639758,-27304.27534805,0.000178,2]
[327251161,1715928639768,-500.0,0.00017808,2]
[327251162,1715928639779,-500.0,0.00017808,2]
[327251163,1715928639788,-567.39,0.00017808,2]
[327251164,1715928639797,-626.76,0.00017808,2]
[327251165,1715928639807,-500.0,0.00017808,4]
[327251166,1715928639816,-500.0,0.00017808,2]
[327251167,1715928639825,-500.0,0.00017808,2]
[327251168,1715928639834,-500.0,0.00017808,2]
[327251169,1715928639844,-500.0,0.00017808,2]
[327251170,1715928639854,-500.0,0.00017808,2]
[327251171,1715928639863,-500.0,0.00017808,2]
[327251172,1715928639872,-641.37,0.00017808,2]
[327251173,1715928639881,-500.0,0.00017808,2]
[327251174,1715928639890,-478.5355781,0.00017808,2]
[327251175,1715928639899,-500.0,0.00017808,2]
[327251176,1715928639908,-500.0,0.00017808,2]
[327251177,1715928639918,-500.0,0.00017808,2]
[327251178,1715928639927,-559.86,0.00017808,2]
[327251179,1715928639936,-625.17,0.00017808,2]
[327251180,1715928639945,-631.71952484,0.00017808,2]
[327251181,1715928639954,-500.0,0.00017808,2]
[327251182,1715928639963,-928.32,0.00017808,2]
[327251183,1715928639972,-500.0,0.00017808,2]